[Event "CZE-ch Youth G10-G12-G14 2022"]
[Site "Luhacovice"]
[Date "2022.03.13"]
[Round "2.35"]
[White "Veverkova, Dorota"]
[Black "Vacekova Anita"]
[Result "1-0"]
[ECO "C56"]
[WhiteElo "1320"]
[BlackElo "1000"]
[Annotator "NA"]
[PlyCount "115"]
[EventDate "2022.03.12"]
[EventType "swiss"]
[EventCountry "CZE"]
[SourceTitle "playchess.com"]
[Source "ChessBase"]
[SourceQuality "1"]
[TimeControl "40/5400+30:1800+30"]

1. e4 {[%emt 0:00:04]} e5 {[%emt 0:00:03]} 2. Nf3 {[%emt 0:00:11]} Nc6 {[%emt 0:00:03]} 3. d4 {[%emt 0:00:08]} exd4 {[%emt 0:00:04]} 4. Bc4 {[%emt 0:00:10]} Nf6 {[%emt 0:00:18]} 5. e5 {[%emt 0:00:11]} d5 {[%emt 0:00:05]} 6. Bb5 {[%emt 0:00:16]} Ne4 {[%emt 0:00:19]} 7. Nxd4 {[%emt 0:00:29]} Bd7 {[%emt 0:00:53]} 8. Bxc6 {[%emt 0:00:25]} bxc6 {[%emt 0:00:49]} 9. O-O {[%emt 0:01:42]} Bc5 {[%emt 0:03:29]} 10. Be3 {[%emt 0:01:33]} Bb6 {[%emt 0:02:25]} 11. Nc3 {[%emt 0:03:08]} c5 {[%emt 0:07:40]} 12. Nb3 {[%emt 0:01:02]} Nxc3 {[%emt 0:08:35]} 13. bxc3 {[%emt 0:00:17]} c4 {[%emt 0:01:34]} 14. Nd4 {[%emt 0:00:56]} c5 {[%emt 0:02:02]} 15. Ne2 {[%emt 0:01:04]} Bc6 {[%emt 0:01:13]} 16. f4 {[%emt 0:04:49]} Qh4 {[%emt 0:08:01]} 17. Ng3 {[%emt 0:04:14]} g6 {[%emt 0:02:39]} 18. Qf3 {[%emt 0:04:37]} Rc8 {[%emt 0:02:37]} 19. Qf2 {[%emt 0:00:57]} Bd7 {[%emt 0:01:30]} 20. Rad1 {[%emt 0:03:01]} Be6 {[%emt 0:00:28]} 21. f5 {[%emt 0:02:27]} gxf5 {[%emt 0:00:33]} 22. Nxf5 {[%emt 0:00:36]} Qxf2+ {[%emt 0:00:23]} 23. Rxf2 {[%emt 0:00:33]} Bxf5 {[%emt 0:00:26]} 24. Rxf5 {[%emt 0:00:13]} Ke7 {[%emt 0:01:21]} 25. Rf6 {[%emt 0:03:10]} d4 {[%emt 0:03:29]} 26. cxd4 {[%emt 0:12:19]} cxd4 {[%emt 0:00:32]} 27. Bxd4 {[%emt 0:01:17]} Rhd8 {[%emt 0:02:36]} 28. c3 {[%emt 0:03:44]} Bxd4+ {[%emt 0:01:11]} 29. Rxd4 {[%emt 0:03:35]} Rxd4 {[%emt 0:00:48]} 30. cxd4 {[%emt 0:01:14]} c3 {[%emt 0:00:37]} 31. Rf1 {[%emt 0:00:18]} c2 {[%emt 0:00:57]} 32. Rc1 {[%emt 0:00:13]} Ke6 {[%emt 0:01:11]} 33. Kf2 {[%emt 0:00:30]} Kd5 {[%emt 0:00:17]} 34. Ke3 {[%emt 0:00:14]} Rc3+ {[%emt 0:00:23]} 35. Kd2 {[%emt 0:02:40]} Kxd4 {[%emt 0:00:12]} 36. Rxc2 {[%emt 0:00:15]} Rxc2+ {[%emt 0:03:29]} 37. Kxc2 {[%emt 0:00:26]} Kxe5 {[%emt 0:04:27]} 38. Kd3 {[%emt 0:08:32]} Kd5 {[%emt 0:02:45]} 39. g3 {[%emt 0:04:20]} h5 {[%emt 0:02:03]} 40. a4 {[%emt 0:03:43]} Kc5 {[%emt 0:03:01]} 41. h4 {[%emt 0:36:38]} f5 {[%emt 0:33:29]} 42. Ke3 {[%emt 0:01:23]} a5 {[%emt 0:01:02]} 43. Kf4 {[%emt 0:01:37]} Kb4 {[%emt 0:00:07]} 44. Kxf5 {[%emt 0:00:12]} Kxa4 {[%emt 0:00:07]} 45. g4 {[%emt 0:00:10]} hxg4 {[%emt 0:01:00]} 46. Kxg4 {[%emt 0:00:09]} Kb3 {[%emt 0:01:09]} 47. h5 {[%emt 0:00:09]} a4 {[%emt 0:00:36]} 48. h6 {[%emt 0:00:08]} a3 {[%emt 0:00:15]} 49. h7 {[%emt 0:00:06]} Ka2 {[%emt 0:01:30]} 50. h8=Q {[%emt 0:01:43]} Kb1 {[%emt 0:00:10]} 51. Qh1+ {[%emt 0:00:24]} Kb2 {[%emt 0:00:15]} 52. Qg2+ {[%emt 0:00:11]} Kb1 {[%emt 0:01:03]} 53. Qf1+ {[%emt 0:01:02]} Kb2 {[%emt 0:00:12]} 54. Qe2+ {[%emt 0:00:45]} Kb1 {[%emt 0:00:47]} 55. Qd3+ {[%emt 0:01:12]} Kb2 {[%emt 0:00:06]} 56. Qd4+ {[%emt 0:01:51]} Kc2 {[%emt 0:01:36]} 57. Qa4+ {[%emt 0:01:16]} Kb2 {[%emt 0:00:12]} 58. Qb4+ {[%emt 0:00:17]} 1-0

[Event "CZE-ch Youth G10-G12-G14 2022"]
[Site "Luhacovice"]
[Date "2022.03.13"]
[Round "2.36"]
[White "Janouskova, Adela"]
[Black "Zadrapova, Amalie"]
[Result "0-1"]
[ECO "B20"]
[WhiteElo "1585"]
[BlackElo "1582"]
[Annotator "NA"]
[PlyCount "86"]
[EventDate "2022.03.12"]
[EventType "swiss"]
[EventCountry "CZE"]
[SourceTitle "playchess.com"]
[Source "ChessBase"]
[SourceQuality "1"]
[TimeControl "40/5400+30:1800+30"]

1. e4 {[%emt 0:00:06]} c5 {[%emt 0:00:05]} 2. b4 {[%emt 0:00:09]} cxb4 {[%emt 0:00:16]} 3. a3 {[%emt 0:00:12]} d5 {[%emt 0:03:51]} 4. exd5 {[%emt 0:00:12]} Qxd5 {[%emt 0:00:12]} 5. Nf3 {[%emt 0:00:30]} e5 {[%emt 0:02:19]} 6. axb4 {[%emt 0:06:16]} Bxb4 {[%emt 0:14:02]} 7. c3 {[%emt 0:09:33]} Bd6 {[%emt 0:09:45]} 8. Na3 {[%emt 0:09:57]} Bd7 {[%emt 0:17:02]} 9. Nc4 {[%emt 0:04:25]} Bc7 {[%emt 0:01:25]} 10. Ne3 {[%emt 0:09:43]} Qe6 {[%emt 0:04:40]} 11. Bc4 {[%emt 0:02:36]} Qf6 {[%emt 0:05:02]} 12. Nd5 {[%emt 0:05:03]} Qd8 {[%emt 0:00:28]} 13. Ba3 {[%emt 0:11:28]} Bc6 {[%emt 0:10:57]} 14. Nxc7+ {[%emt 0:04:08]} Qxc7 {[%emt 0:00:08]} 15. Qb3 {[%emt 0:02:39]} h6 {[%emt 0:02:46]} 16. O-O {[%emt 0:02:05]} Bxf3 {[%emt 0:02:40]} 17. gxf3 {[%emt 0:00:07]} Nc6 {[%emt 0:00:36]} 18. d4 {[%emt 0:07:51]} O-O-O {[%emt 0:09:07]} 19. Bxf7 {[%emt 0:08:53]} exd4 {[%emt 0:01:38]} 20. Rfc1 {[%emt 0:06:48]} d3 {[%emt 0:01:51]} 21. Be6+ {[%emt 0:02:28]} Kb8 {[%emt 0:00:15]} 22. Bc5 {[%emt 0:01:19]} Nf6 {[%emt 0:06:13]} 23. Be3 {[%emt 0:02:32]} Rhe8 {[%emt 0:03:39]} 24. Bh3 {[%emt 0:01:30]} Nd5 {[%emt 0:00:59]} 25. Bd2 {[%emt 0:01:14]} Nf4 {[%emt 0:00:38]} 26. Bxf4 {[%emt 0:00:40]} Qxf4 {[%emt 0:00:05]} 27. Rab1 {[%emt 0:00:26]} Qc7 {[%emt 0:00:17]} 28. Rd1 {[%emt 0:00:29]} Na5 {[%emt 0:01:48]} 29. Qb4 {[%emt 0:00:46]} Nc6 {[%emt 0:01:13]} 30. Qb5 {[%emt 0:00:36]} Ne5 {[%emt 0:00:45]} 31. Bg4 {[%emt 0:00:35]} Nxg4 {[%emt 0:00:34]} 32. fxg4 {[%emt 0:00:04]} d2 {[%emt 0:00:19]} 33. Qb2 {[%emt 0:00:15]} Re2 {[%emt 0:00:29]} 34. Kf1 {[%emt 0:00:47]} Re1+ {[%emt 0:00:49]} 35. Rxe1 {[%emt 0:00:11]} dxe1=Q+ {[%emt 0:00:06]} 36. Kxe1 {[%emt 0:00:23]} Re8+ {[%emt 0:00:06]} 37. Kf1 {[%emt 0:00:15]} Qc4+ {[%emt 0:00:09]} 38. Kg2 {[%emt 0:00:42]} Qxg4+ {[%emt 0:00:06]} 39. Kh1 {[%emt 0:00:42]} Qf3+ {[%emt 0:00:04]} 40. Kg1 {[%emt 0:00:04]} Re2 {[%emt 0:00:29]} 41. Qxe2 {[%emt 0:31:23]} Qxe2 {[%emt 0:30:06]} 42. Kg2 {[%emt 0:00:30]} Qe4+ {[%emt 0:00:06]} 43. Kg3 {[%emt 0:00:03]} Qxb1 {[%emt 0:00:11]} 0-1

[Event "CZE-ch Youth G10-G12-G14 2022"]
[Site "Luhacovice"]
[Date "2022.03.13"]
[Round "2.37"]
[White "Sikorova, Jana"]
[Black "Dorazilova, Kristyna"]
[Result "1-0"]
[ECO "D58"]
[WhiteElo "1427"]
[BlackElo "1240"]
[Annotator "NA"]
[PlyCount "131"]
[EventDate "2022.03.12"]
[EventType "swiss"]
[EventCountry "CZE"]
[SourceTitle "playchess.com"]
[Source "ChessBase"]
[SourceQuality "1"]
[TimeControl "40/5400+30:1800+30"]

1. d4 {[%emt 0:27:09]} Nf6 {[%emt 0:08:16]} 2. Nf3 {[%emt 0:00:31]} e6 {[%emt 0:00:30]} 3. c4 {[%emt 0:00:30]} b6 {[%emt 0:00:30]} 4. Bg5 {[%emt 0:00:30]} Be7 {[%emt 0:00:30]} 5. Nc3 {[%emt 0:00:30]} Bb7 {[%emt 0:00:30]} 6. e3 {[%emt 0:00:30]} O-O {[%emt 0:00:30]} 7. Bd3 {[%emt 0:00:30]} d5 {[%emt 0:00:30]} 8. O-O {[%emt 0:00:30]} Nbd7 {[%emt 0:00:30]} 9. Qe2 {[%emt 0:00:30]} c5 {[%emt 0:00:30]} 10. Rac1 {[%emt 0:00:30]} Rc8 {[%emt 0:00:30]} 11. Rfd1 {[%emt 0:00:30]} h6 {[%emt 0:00:30]} 12. Bh4 {[%emt 0:00:30]} Re8 {[%emt 0:00:30]} 13. e4 {[%emt 0:46:53]} cxd4 {[%emt 0:38:04]} 14. Nxd4 {[%emt 0:00:30]} dxe4 {[%emt 0:00:30]} 15. Nxe4 {[%emt 0:00:30]} Nxe4 {[%emt 0:00:30]} 16. Bxe7 {[%emt 0:00:30]} Qxe7 {[%emt 0:00:30]} 17. Bxe4 {[%emt 0:00:30]} Bxe4 {[%emt 0:00:30]} 18. Qxe4 {[%emt 0:00:30]} Nf6 {[%emt 0:00:30]} 19. Qf3 {[%emt 0:00:30]} Qc5 {[%emt 0:00:30]} 20. Nb5 {[%emt 0:00:30]} Re7 {[%emt 0:00:30]} 21. Rd2 {[%emt 0:00:30]} a6 {[%emt 0:00:30]} 22. Nd6 {[%emt 0:00:30]} Rf8 {[%emt 0:00:30]} 23. b3 {[%emt 0:00:30]} Qc7 {[%emt 0:00:30]} 24. Rcd1 {[%emt 0:00:30]} Rb8 {[%emt 0:00:30]} 25. h3 {[%emt 0:00:30]} Qc5 {[%emt 0:00:30]} 26. Ne4 {[%emt 0:00:30]} Nxe4 {[%emt 0:00:30]} 27. Qxe4 {[%emt 0:00:30]} Qc7 {[%emt 0:00:30]} 28. Rd6 {[%emt 0:00:30]} g6 {[%emt 0:00:30]} 29. Kf1 {[%emt 0:00:30]} Kh7 {[%emt 0:00:30]} 30. Qc6 {[%emt 0:00:30]} h5 {[%emt 0:00:30]} 31. Ke2 {[%emt 0:00:30]} Kg7 {[%emt 0:00:30]} 32. Ke3 {[%emt 0:00:30]} Kh7 {[%emt 0:00:30]} 33. Qxc7 {[%emt 0:00:30]} Rxc7 {[%emt 0:00:30]} 34. Rd7 {[%emt 0:00:30]} Rbb7 {[%emt 0:00:30]} 35. Rxc7 {[%emt 0:00:30]} Rxc7 {[%emt 0:00:30]} 36. Rd6 {[%emt 0:00:30]} Rb7 {[%emt 0:00:30]} 37. Kd4 {[%emt 0:00:30]} a5 {[%emt 0:00:30]} 38. Kc3 {[%emt 0:00:30]} Kg7 {[%emt 0:01:08]} 39. b4 {[%emt 0:01:44]} a4 {[%emt 0:02:26]} 40. b5 {[%emt 0:00:49]} e5 {[%emt 0:03:00]} 41. Kb4 {[%emt 0:31:22]} e4 {[%emt 0:30:30]} 42. Kxa4 {[%emt 0:01:18]} f5 {[%emt 0:00:42]} 43. c5 {[%emt 0:04:58]} bxc5 {[%emt 0:00:57]} 44. b6 {[%emt 0:00:10]} Rb8 {[%emt 0:02:07]} 45. Kb5 {[%emt 0:01:23]} c4 {[%emt 0:00:29]} 46. Kxc4 {[%emt 0:00:52]} Rc8+ {[%emt 0:00:32]} 47. Kb5 {[%emt 0:03:42]} Rc2 {[%emt 0:00:35]} 48. b7 {[%emt 0:01:14]} Rxf2 {[%emt 0:03:56]} 49. Kc5 {[%emt 0:00:30]} Rc2+ {[%emt 0:00:58]} 50. Kd4 {[%emt 0:01:00]} Rb2 {[%emt 0:01:02]} 51. Rd7+ {[%emt 0:00:34]} Kf6 {[%emt 0:00:07]} 52. a4 {[%emt 0:01:16]} Rd2+ {[%emt 0:01:04]} 53. Ke3 {[%emt 0:00:11]} Rxd7 {[%emt 0:00:23]} 54. b8=Q {[%emt 0:00:26]} Rd3+ {[%emt 0:00:16]} 55. Ke2 {[%emt 0:00:26]} f4 {[%emt 0:01:25]} 56. Qf8+ {[%emt 0:00:38]} Ke5 {[%emt 0:00:52]} 57. Qc5+ {[%emt 0:02:06]} Rd5 {[%emt 0:01:59]} 58. Qc3+ {[%emt 0:00:43]} Ke6 {[%emt 0:01:06]} 59. Qc6+ {[%emt 0:00:55]} Ke5 {[%emt 0:01:14]} 60. Qxg6 {[%emt 0:00:52]} e3 {[%emt 0:02:28]} 61. Qxh5+ {[%emt 0:00:34]} Ke4 {[%emt 0:01:02]} 62. Qxd5+ {[%emt 0:00:14]} Kxd5 {[%emt 0:00:11]} 63. h4 {[%emt 0:00:18]} Ke5 {[%emt 0:00:16]} 64. a5 {[%emt 0:00:07]} Kf5 {[%emt 0:00:29]} 65. a6 {[%emt 0:00:16]} Kg4 {[%emt 0:00:08]} 66. a7 {[%emt 0:00:08]} 1-0

[Event "CZE-ch Youth G10-G12-G14 2022"]
[Site "Luhacovice"]
[Date "2022.03.13"]
[Round "2.38"]
[White "Kavanova, Anezka"]
[Black "Koval, Anna"]
[Result "1-0"]
[ECO "C29"]
[WhiteElo "1089"]
[BlackElo "1278"]
[Annotator "NA"]
[PlyCount "79"]
[EventDate "2022.03.12"]
[EventType "swiss"]
[EventCountry "CZE"]
[SourceTitle "playchess.com"]
[Source "ChessBase"]
[SourceQuality "1"]
[TimeControl "40/5400+30:1800+30"]

1. e4 {[%emt 0:05:41]} e5 {[%emt 0:08:40]} 2. Nc3 {[%emt 0:26:25]} Nf6 {[%emt 0:00:30]} 3. f4 {[%emt 0:00:30]} exf4 {[%emt 0:00:30]} 4. e5 {[%emt 0:00:30]} Ng8 {[%emt 0:00:30]} 5. Nf3 {[%emt 0:00:30]} d5 {[%emt 0:00:30]} 6. d4 {[%emt 0:00:30]} Bg4 {[%emt 0:00:30]} 7. Be2 {[%emt 0:00:30]} f6 {[%emt 0:00:30]} 8. Bxf4 {[%emt 0:00:30]} Nc6 {[%emt 0:00:30]} 9. h3 {[%emt 0:00:30]} Bxf3 {[%emt 0:00:30]} 10. Bxf3 {[%emt 0:00:30]} fxe5 {[%emt 0:00:30]} 11. Bxe5 {[%emt 0:00:30]} Nxe5 {[%emt 0:00:30]} 12. dxe5 {[%emt 0:00:30]} d4 {[%emt 0:00:30]} 13. Bxb7 {[%emt 0:00:30]} Qh4+ {[%emt 0:00:30]} 14. Kf1 {[%emt 0:00:30]} Qf4+ {[%emt 0:00:30]} 15. Qf3 {[%emt 0:00:30]} Qxf3+ {[%emt 0:00:30]} 16. gxf3 {[%emt 0:00:30]} Rb8 {[%emt 0:00:30]} 17. Bc6+ {[%emt 0:00:30]} Kd8 {[%emt 0:00:30]} 18. Na4 {[%emt 0:00:30]} Ne7 {[%emt 0:00:30]} 19. Be4 {[%emt 0:00:30]} g6 {[%emt 0:00:30]} 20. Rb1 {[%emt 0:00:30]} Nf5 {[%emt 0:00:30]} 21. Bxf5 {[%emt 0:00:30]} gxf5 {[%emt 0:00:30]} 22. Rd1 {[%emt 0:00:30]} c5 {[%emt 0:00:30]} 23. c3 {[%emt 0:00:30]} Kc7 {[%emt 0:00:30]} 24. cxd4 {[%emt 0:00:30]} Rd8 {[%emt 0:00:32]} 25. d5 {[%emt 0:02:22]} Rg8 {[%emt 0:00:58]} 26. Rg1 {[%emt 0:02:08]} Rxg1+ {[%emt 0:01:27]} 27. Kxg1 {[%emt 0:00:14]} c4 {[%emt 0:00:27]} 28. Rd4 {[%emt 0:03:58]} Kb8 {[%emt 0:02:03]} 29. d6 {[%emt 0:05:50]} Bg7 {[%emt 0:00:38]} 30. f4 {[%emt 0:00:32]} a5 {[%emt 0:00:46]} 31. Kf2 {[%emt 0:01:19]} Kc8 {[%emt 0:01:18]} 32. Rxc4+ {[%emt 0:01:06]} Kd7 {[%emt 0:00:04]} 33. Rc7+ {[%emt 0:01:00]} Ke6 {[%emt 0:00:11]} 34. Rxg7 {[%emt 0:00:23]} h5 {[%emt 0:00:10]} 35. Nb6 {[%emt 0:01:13]} Re8 {[%emt 0:00:38]} 36. Re7+ {[%emt 0:00:28]} Rxe7 {[%emt 0:00:12]} 37. dxe7 {[%emt 0:00:05]} Kxe7 {[%emt 0:00:35]} 38. Ke3 {[%emt 0:00:28]} Ke6 {[%emt 0:00:21]} 39. Kd4 {[%emt 0:00:36]} Ke7 {[%emt 0:00:00]} 40. Kd5 {[%emt 0:00:00]} 1-0

[Event "CZE-ch Youth G10-G12-G14 2022"]
[Site "Luhacovice"]
[Date "2022.03.13"]
[Round "2.39"]
[White "Svrchokrylova, Ludmila"]
[Black "Brezikova, Beata"]
[Result "0-1"]
[ECO "C55"]
[WhiteElo "1024"]
[BlackElo "1266"]
[Annotator "NA"]
[PlyCount "112"]
[EventDate "2022.03.12"]
[EventType "swiss"]
[EventCountry "CZE"]
[SourceTitle "playchess.com"]
[Source "ChessBase"]
[SourceQuality "1"]
[TimeControl "40/5400+30:1800+30"]

1. e4 {[%emt 0:00:12]} e5 {[%emt 0:00:04]} 2. Nf3 {[%emt 0:00:19]} Nc6 {[%emt 0:00:04]} 3. Bc4 {[%emt 0:00:07]} Nf6 {[%emt 0:00:08]} 4. Nc3 {[%emt 0:00:12]} Nxe4 {[%emt 0:00:16]} 5. Nxe4 {[%emt 0:00:26]} d5 {[%emt 0:00:07]} 6. Bxd5 {[%emt 0:00:28]} Qxd5 {[%emt 0:00:10]} 7. Nc3 {[%emt 0:00:12]} Qd8 {[%emt 0:01:21]} 8. d3 {[%emt 0:00:18]} Be7 {[%emt 0:02:25]} 9. Be3 {[%emt 0:00:48]} Bf6 {[%emt 0:26:15]} 10. Qd2 {[%emt 0:01:30]} Nd4 {[%emt 0:04:40]} 11. Bxd4 {[%emt 0:01:43]} exd4 {[%emt 0:00:15]} 12. Ne4 {[%emt 0:00:24]} Be7 {[%emt 0:00:27]} 13. O-O {[%emt 0:01:27]} O-O {[%emt 0:02:35]} 14. Rfe1 {[%emt 0:01:11]} c5 {[%emt 0:02:50]} 15. c3 {[%emt 0:03:18]} dxc3 {[%emt 0:02:00]} 16. bxc3 {[%emt 0:01:32]} b6 {[%emt 0:02:10]} 17. Rad1 {[%emt 0:01:51]} Bb7 {[%emt 0:04:28]} 18. d4 {[%emt 0:11:14]} cxd4 {[%emt 0:06:07]} 19. cxd4 {[%emt 0:01:34]} Bf6 {[%emt 0:05:31]} 20. d5 {[%emt 0:09:40]} Re8 {[%emt 0:09:16]} 21. Qd3 {[%emt 0:04:34]} Rc8 {[%emt 0:07:04]} 22. d6 {[%emt 0:01:47]} Bxe4 {[%emt 0:02:02]} 23. Rxe4 {[%emt 0:01:07]} Rxe4 {[%emt 0:00:22]} 24. Qxe4 {[%emt 0:00:17]} Qd7 {[%emt 0:02:32]} 25. Ne5 {[%emt 0:02:58]} Qe6 {[%emt 0:05:58]} 26. f4 {[%emt 0:08:28]} Re8 {[%emt 0:06:47]} 27. d7 {[%emt 0:03:38]} Rd8 {[%emt 0:00:44]} 28. Qd5 {[%emt 0:02:24]} Bxe5 {[%emt 0:02:28]} 29. fxe5 {[%emt 0:04:10]} Qxd5 {[%emt 0:00:29]} 30. Rxd5 {[%emt 0:00:14]} Kf8 {[%emt 0:00:16]} 31. Kf2 {[%emt 0:00:14]} Ke7 {[%emt 0:00:11]} 32. Ke3 {[%emt 0:00:26]} Rxd7 {[%emt 0:00:23]} 33. Rxd7+ {[%emt 0:00:17]} Kxd7 {[%emt 0:00:03]} 34. Kd4 {[%emt 0:00:14]} Kc6 {[%emt 0:01:44]} 35. Kc4 {[%emt 0:00:24]} a5 {[%emt 0:01:17]} 36. a4 {[%emt 0:00:29]} g6 {[%emt 0:02:58]} 37. h4 {[%emt 0:00:36]} h5 {[%emt 0:01:15]} 38. g3 {[%emt 0:00:19]} Kc7 {[%emt 0:00:22]} 39. Kd5 {[%emt 0:01:02]} Kd7 {[%emt 0:00:34]} 40. Kd4 {[%emt 0:01:58]} Kc6 {[%emt 0:00:35]} 41. Kc4 {[%emt 0:30:16]} Kc7 {[%emt 0:30:10]} 42. Kd4 {[%emt 0:00:40]} b5 {[%emt 0:00:50]} 43. axb5 {[%emt 0:00:21]} Kb6 {[%emt 0:00:19]} 44. Kc4 {[%emt 0:00:10]} a4 {[%emt 0:00:06]} 45. Kb4 {[%emt 0:00:09]} a3 {[%emt 0:00:05]} 46. Kxa3 {[%emt 0:00:20]} Kxb5 {[%emt 0:00:04]} 47. Kb3 {[%emt 0:00:14]} Kc5 {[%emt 0:00:12]} 48. Kc3 {[%emt 0:00:10]} Kd5 {[%emt 0:00:04]} 49. Kd3 {[%emt 0:00:36]} Kxe5 {[%emt 0:00:08]} 50. Ke3 {[%emt 0:00:00]} Kf5 {[%emt 0:00:38]} 51. Kf3 {[%emt 0:00:00]} f6 {[%emt 0:00:14]} 52. Kf2 {[%emt 0:00:26]} Kg4 {[%emt 0:00:34]} 53. Kg2 {[%emt 0:00:09]} f5 {[%emt 0:00:19]} 54. Kf2 {[%emt 0:00:13]} f4 {[%emt 0:00:18]} 55. gxf4 {[%emt 0:00:16]} Kxf4 {[%emt 0:00:07]} 56. Kg2 {[%emt 0:02:12]} Kg4 {[%emt 0:00:09]} 0-1

[Event "CZE-ch Youth G10-G12-G14 2022"]
[Site "Luhacovice"]
[Date "2022.03.13"]
[Round "2.40"]
[White "Dominikova, Denisa"]
[Black "Dufkova, Tereza"]
[Result "1-0"]
[ECO "C65"]
[WhiteElo "1254"]
[BlackElo "1014"]
[Annotator "NA"]
[PlyCount "81"]
[EventDate "2022.03.12"]
[EventType "swiss"]
[EventCountry "CZE"]
[SourceTitle "playchess.com"]
[Source "ChessBase"]
[SourceQuality "1"]
[TimeControl "40/5400+30:1800+30"]

1. e4 {[%emt 0:00:07]} e5 {[%emt 0:00:06]} 2. Nf3 {[%emt 0:00:29]} Nc6 {[%emt 0:00:05]} 3. Bb5 {[%emt 0:00:40]} Nf6 {[%emt 0:00:55]} 4. O-O {[%emt 0:01:36]} Bc5 {[%emt 0:00:31]} 5. Re1 {[%emt 0:02:32]} O-O {[%emt 0:00:19]} 6. c3 {[%emt 0:02:57]} d6 {[%emt 0:07:12]} 7. d4 {[%emt 0:04:08]} exd4 {[%emt 0:00:27]} 8. cxd4 {[%emt 0:01:59]} Bb4 {[%emt 0:00:59]} 9. Bd2 {[%emt 0:03:37]} Bxd2 {[%emt 0:01:36]} 10. Nbxd2 {[%emt 0:01:06]} a6 {[%emt 0:00:10]} 11. Ba4 {[%emt 0:05:59]} Re8 {[%emt 0:01:27]} 12. d5 {[%emt 0:02:40]} b5 {[%emt 0:00:41]} 13. dxc6 {[%emt 0:01:32]} bxa4 {[%emt 0:00:21]} 14. Qxa4 {[%emt 0:01:43]} Rb8 {[%emt 0:00:28]} 15. b3 {[%emt 0:08:45]} Rb5 {[%emt 0:09:00]} 16. Rac1 {[%emt 0:04:06]} Nh5 {[%emt 0:10:22]} 17. b4 {[%emt 0:13:58]} Nf4 {[%emt 0:05:32]} 18. Re3 {[%emt 0:03:48]} Qf6 {[%emt 0:04:05]} 19. Qa3 {[%emt 0:05:19]} Qg6 {[%emt 0:02:23]} 20. g3 {[%emt 0:05:10]} Nh3+ {[%emt 0:01:28]} 21. Kf1 {[%emt 0:02:14]} Ng5 {[%emt 0:02:41]} 22. Nxg5 {[%emt 0:01:58]} Qxg5 {[%emt 0:03:44]} 23. h4 {[%emt 0:02:22]} Bh3+ {[%emt 0:03:13]} 24. Ke1 {[%emt 0:01:56]} Qg4 {[%emt 0:03:20]} 25. Qxa6 {[%emt 0:03:30]} Rxb4 {[%emt 0:00:24]} 26. Qa5 {[%emt 0:00:46]} Rb2 {[%emt 0:03:53]} 27. Qxc7 {[%emt 0:00:55]} f5 {[%emt 0:01:46]} 28. Qd7 {[%emt 0:01:23]} Kf8 {[%emt 0:01:46]} 29. c7 {[%emt 0:02:46]} fxe4 {[%emt 0:00:20]} 30. Qxd6+ {[%emt 0:01:43]} Kf7 {[%emt 0:02:14]} 31. Qd5+ {[%emt 0:01:30]} Kg6 {[%emt 0:01:55]} 32. Rxe4 {[%emt 0:01:24]} Rxe4+ {[%emt 0:06:06]} 33. Qxe4+ {[%emt 0:01:05]} Qxe4+ {[%emt 0:05:08]} 34. Nxe4 {[%emt 0:00:07]} Rxa2 {[%emt 0:02:51]} 35. c8=Q {[%emt 0:01:44]} Bxc8 {[%emt 0:00:15]} 36. Rxc8 {[%emt 0:00:06]} Ra1+ {[%emt 0:00:05]} 37. Ke2 {[%emt 0:00:43]} Ra2+ {[%emt 0:00:14]} 38. Kf3 {[%emt 0:00:23]} Kf5 {[%emt 0:01:27]} 39. g4+ {[%emt 0:00:59]} Ke5 {[%emt 0:00:33]} 40. Re8+ {[%emt 0:00:32]} Kd5 {[%emt 0:00:26]} 41. Nc3+ {[%emt 0:30:15]} 1-0

[Event "CZE-ch Youth G10-G12-G14 2022"]
[Site "Luhacovice"]
[Date "2022.03.13"]
[Round "2.41"]
[White "Lipovska Viktorie"]
[Black "Stavova, Marketa"]
[Result "0-1"]
[ECO "C50"]
[WhiteElo "1189"]
[BlackElo "1146"]
[Annotator "NA"]
[PlyCount "49"]
[EventDate "2022.03.12"]
[EventType "swiss"]
[EventCountry "CZE"]
[SourceTitle "playchess.com"]
[Source "ChessBase"]
[SourceQuality "1"]
[TimeControl "40/5400+30:1800+30"]

1. e4 {[%emt 0:00:06]} e5 {[%emt 0:00:19]} 2. Nf3 {[%emt 0:00:10]} Nc6 {[%emt 0:00:19]} 3. Bc4 {[%emt 0:00:16]} Nf6 {[%emt 0:00:27]} 4. d3 {[%emt 0:00:14]} h6 {[%emt 0:00:31]} 5. Nc3 {[%emt 0:00:13]} Bc5 {[%emt 0:00:45]} 6. O-O {[%emt 0:01:14]} O-O {[%emt 0:01:10]} 7. Be3 {[%emt 0:00:18]} Bb6 {[%emt 0:00:43]} 8. Qd2 {[%emt 0:00:11]} d6 {[%emt 0:00:52]} 9. h3 {[%emt 0:01:31]} Be6 {[%emt 0:02:15]} 10. Bb3 {[%emt 0:01:30]} Nd4 {[%emt 0:01:50]} 11. Nxd4 {[%emt 0:00:29]} exd4 {[%emt 0:00:10]} 12. Nd5 {[%emt 0:01:01]} dxe3 {[%emt 0:02:02]} 13. Nxf6+ {[%emt 0:00:39]} Qxf6 {[%emt 0:00:08]} 14. fxe3 {[%emt 0:00:36]} Qg5 {[%emt 0:01:24]} 15. d4 {[%emt 0:01:05]} c6 {[%emt 0:02:44]} 16. c4 {[%emt 0:00:39]} Bxh3 {[%emt 0:01:33]} 17. Rf3 {[%emt 0:00:50]} Bd7 {[%emt 0:02:01]} 18. Raf1 {[%emt 0:00:52]} Rae8 {[%emt 0:00:55]} 19. c5 {[%emt 0:00:23]} Bc7 {[%emt 0:00:55]} 20. Bxf7+ {[%emt 0:01:34]} Kh8 {[%emt 0:01:34]} 21. Qd3 {[%emt 0:02:19]} Rd8 {[%emt 0:01:58]} 22. e5 {[%emt 0:01:13]} dxe5 {[%emt 0:02:49]} 23. Qe4 {[%emt 0:01:12]} exd4 {[%emt 0:02:04]} 24. Qxd4 {[%emt 0:01:08]} Bh3 {[%emt 0:02:41]} 25. Qc3 {[%emt 0:01:24]} 0-1